fUSD/lending_fUSD_20250213
["ID","MTS","AMOUNT","RATE_DAILY","PERIOD"]
[352926757,1739436643730,-500.0,0.00015337,2]
[352926758,1739436643743,-555.02,0.00015337,2]
[352926759,1739436643753,-500.0,0.00015337,2]
[352926760,1739436643763,-500.0,0.00015337,2]
[352926761,1739436643773,-437.38672466,0.00015337,2]
[352926762,1739436643783,-500.0,0.00015337,2]
[352926763,1739436643793,-500.0,0.00015337,2]
[352926764,1739436643803,-517.62962567,0.00015337,2]
[352926765,1739436643812,-500.0,0.00015337,2]
[352926766,1739436643822,-449.37220268,0.00015337,2]
[352926767,1739436643831,-500.0,0.00015337,2]
[352926768,1739436643840,-668.36,0.00015337,2]
[352926769,1739436643850,-500.0,0.00015337,2]
[352926770,1739436643860,-979.47,0.00015337,2]
[352926771,1739436643870,-523.42,0.00015337,2]
[352926772,1739436643879,-500.0,0.00015337,2]
[352926773,1739436643889,-500.0,0.00015337,2]
[352926774,1739436643898,-500.0,0.00015337,2]
[352926775,1739436643908,-500.0,0.00015337,2]
[352926776,1739436643918,-500.0,0.00015337,2]
[352926777,1739436643927,-500.0,0.00015337,2]
[352926778,1739436643937,-865.11,0.00015337,2]
[352926779,1739436643947,-500.0,0.00015337,2]
[352926780,1739436643958,-1200.0,0.00015337,2]
[352926781,1739436643967,-509.21808208,0.00015337,2]
[352926782,1739436643978,-870.12,0.00015337,2]
[352926783,1739436643988,-500.0,0.00015337,2]
[352926784,1739436644165,-500.0,0.00015337,2]
[352926785,1739436644176,-500.0,0.00015337,2]
[352926786,1739436644185,-501.7945858,0.00015337,2]
[352926787,1739436644195,-500.0,0.00015337,2]
[352926788,1739436644204,-1266.73,0.00015337,2]
[352926789,1739436644213,-500.0,0.00015337,2]
[352926790,1739436644223,-475.77879808,0.00015337,2]
[352926791,1739436644235,-1331.94,0.00015337,2]
[352926792,1739436644245,-500.0,0.00015337,2]
[352926793,1739436644254,-500.0,0.00015337,2]
[352926794,1739436644265,-577.59061126,0.00015337,2]
[352926795,1739436644275,-897.73,0.00015337,2]
[352926796,1739436644285,-633.73254482,0.00015337,2]
[352926797,1739436644295,-500.0,0.00015337,2]
[352926798,1739436644305,-500.0,0.00015337,2]
[352926799,1739436644315,-507.38,0.00015337,2]
[352926800,1739436644324,-500.0,0.00015337,2]
[352926801,1739436644334,-500.0,0.00015337,2]
[352926802,1739436644344,-500.0,0.00015337,2]
[352926803,1739436644353,-1233.53,0.00015337,2]
[352926804,1739436644363,-503.9986529,0.00015337,2]
[352926805,1739436644373,-1484.32,0.00015337,2]
[352926806,1739436644383,-500.0,0.00015337,2]
[352926807,1739436644393,-1110.48,0.00015337,2]
[352926808,1739436644403,-500.0,0.00015337,2]
[352926809,1739436644413,-500.0,0.00015337,2]
[352926810,1739436644424,-500.0,0.00015337,2]
[352926811,1739436644436,-1400.89,0.00015337,2]
[352926812,1739436644447,-500.0,0.00015337,2]
[352926813,1739436644456,-1405.8,0.00015337,2]
[352926814,1739436644466,-500.0,0.00015337,2]
[352926815,1739436644476,-500.0,0.00015337,2]
[352926816,1739436644485,-500.0,0.00015337,2]
[352926817,1739436644495,-781.8,0.00015337,2]
[352926818,1739436644505,-500.0,0.00015337,2]
[352926819,1739436644514,-500.0,0.00015337,2]
[352926820,1739436644524,-500.0,0.00015337,2]
[352926821,1739436644534,-500.0,0.00015337,2]
[352926822,1739436644543,-500.0,0.00015337,2]
[352926823,1739436644553,-989.55,0.00015337,2]
[352926824,1739436644563,-591.23,0.00015337,2]
[352926825,1739436644574,-500.0,0.00015337,2]
[352926826,1739436644584,-779.82,0.00015337,2]
[352926827,1739436644593,-1243.03,0.00015337,2]
[352926828,1739436644603,-872.71,0.00015337,2]
[352926829,1739436644613,-468.2188956,0.00015337,2]
[352926830,1739436644622,-516.60791626,0.00015337,2]
[352926831,1739436644632,-500.0,0.00015337,2]
[352926832,1739436644641,-587.75,0.00015337,2]
[352926833,1739436644651,-1138.17,0.00015337,2]
[352926834,1739436644663,-500.0,0.00015337,2]
[352926835,1739436644674,-500.0,0.00015337,2]
[352926836,1739436644684,-589.25,0.00015337,2]
[352926837,1739436644693,-500.0,0.00015337,2]
[352926838,1739436644703,-836.71,0.00015337,2]
[352926839,1739436644713,-500.0,0.00015337,2]
[352926840,1739436644722,-500.0,0.00015337,2]
[352926841,1739436644738,-500.0,0.00015337,2]
[352926842,1739436644748,-500.0,0.00015337,2]
[352926843,1739436644758,-1374.05,0.00015337,2]
[352926844,1739436644768,-500.0,0.00015337,2]
[352926845,1739436644778,-500.0,0.00015337,2]
[352926846,1739436644788,-504.87819766,0.00015337,2]
[352926847,1739436644798,-500.0,0.00015337,2]
[352926848,1739436644808,-500.0,0.00015337,2]
[352926849,1739436644818,-977.78,0.00015337,2]
[352926850,1739436644829,-511.86289951,0.00015337,2]
[352926851,1739436644839,-500.0,0.00015337,2]
[352926852,1739436644849,-500.0,0.00015337,2]
[352926853,1739436644859,-500.0,0.00015337,2]
[352926854,1739436644870,-500.0,0.00015337,2]
[352926855,1739436644880,-500.0,0.00015337,2]
[352926856,1739436644890,-500.0,0.00015337,2]
[352926857,1739436644900,-500.0,0.00015337,2]
[352926858,1739436644911,-500.0,0.00015337,2]
[352926859,1739436644923,-685.98,0.00015337,2]
[352926860,1739436644933,-500.0,0.00015337,2]
[352926861,1739436644943,-500.0,0.00015337,2]
[352926862,1739436644952,-500.0,0.00015337,2]
[352926863,1739436644962,-719.94,0.00015337,2]
[352926864,1739436644972,-500.0,0.00015337,2]
[352926865,1739436644983,-648.98,0.00015337,2]
[352926866,1739436644992,-642.74,0.00015337,2]
[352926867,1739436645002,-500.0,0.00015337,2]
[352926868,1739436645012,-500.0,0.00015337,2]
[352926869,1739436645022,-500.0,0.00015337,2]
[352926870,1739436645031,-500.0,0.00015337,2]
[352926871,1739436645040,-500.0,0.00015337,2]
[352926872,1739436645050,-500.0,0.00015337,2]
[352926873,1739436645059,-500.0,0.00015337,2]
[352926874,1739436645068,-500.0,0.00015337,2]
[352926875,1739436645078,-849.3,0.00015337,2]
[352926876,1739436645087,-1011.3,0.00015337,2]
[352926877,1739436645097,-1240.27,0.00015337,2]
[352926878,1739436645107,-500.0,0.00015337,2]
[352926879,1739436645117,-500.0,0.00015337,2]
[352926880,1739436645126,-165.30789533,0.00015337,2]
[352926881,1739436645136,-500.0,0.00015337,2]
[352926882,1739436645146,-502.70325222,0.00015337,2]
[352926883,1739436645156,-500.0,0.00015337,2]
[352926884,1739436645165,-508.34372915,0.00015337,2]
[352926885,1739436645176,-1430.07,0.00015337,2]
[352926886,1739436645186,-500.0,0.00015337,2]
[352926887,1739436645197,-500.0,0.00015337,2]
[352926888,1739436645208,-272.59338499,0.00015337,2]
[352926889,1739436645218,-500.0,0.00015337,2]
[352926890,1739436645230,-198.98040062,0.00015337,2]
[352926891,1739436645239,-500.0,0.00015337,2]
[352926892,1739436645248,-500.0,0.00015337,2]
[352926893,1739436645259,-503.27292241,0.00015337,2]
[352926894,1739436645270,-528.55075351,0.00015337,2]
[352926895,1739436645282,-509.94580186,0.00015337,2]
[352926896,1739436645293,-629.54,0.00015337,2]
[352926897,1739436645303,-154.56884015,0.00015337,2]
[352926899,1739436645313,-500.0,0.00015337,2]
[352926900,1739436645323,-500.0,0.00015337,2]
[352926901,1739436645333,-500.0,0.00015337,2]
[352926902,1739436645345,-500.0,0.00015337,2]
[352926903,1739436645356,-500.0,0.00015337,2]
[352926904,1739436645366,-500.0,0.00015337,2]
[352926905,1739436645376,-605.08,0.00015337,2]
[352926906,1739436645386,-500.0,0.00015337,2]
[352926907,1739436645396,-856.56,0.00015337,2]
[352926908,1739436645405,-1639.35,0.00015337,2]
[352926910,1739436645415,-500.0,0.00015337,2]
[352926912,1739436645424,-514.55,0.00015337,2]
[352926914,1739436645435,-506.99424087,0.00015337,2]
[352926915,1739436645444,-500.0,0.00015337,2]
[352926916,1739436645454,-505.79485674,0.00015337,2]
[352926917,1739436645468,-500.0,0.00015337,2]
[352926918,1739436645485,-679.03,0.00015337,2]
[352926919,1739436645496,-757.34,0.00015337,2]
[352926920,1739436645506,-151.0,0.00015337,2]
[352926921,1739436645517,-511.57964479,0.00015337,2]
[352926922,1739436645529,-816.79,0.00015337,2]
[352926923,1739436645543,-500.0,0.00015337,2]
[352926924,1739436645556,-499.88674965,0.00015337,2]
[352926925,1739436645567,-694.1,0.00015337,2]
[352926926,1739436645578,-502.8988218,0.00015337,2]
[352926927,1739436645588,-503.31700654,0.00015337,2]
[352926928,1739436645598,-500.0,0.00015337,2]
[352926929,1739436645609,-500.0,0.00015337,2]
[352926930,1739436645618,-500.0,0.00015337,2]
[352926931,1739436645628,-500.0,0.00015337,2]
[352926932,1739436645637,-973.73,0.00015337,2]
[352926933,1739436645647,-639.25,0.00015337,2]
[352926934,1739436645658,-500.0,0.00015337,2]
[352926935,1739436645668,-709.98,0.00015337,2]
[352926936,1739436645678,-500.0,0.00015337,2]
[352926937,1739436645688,-150.0,0.00015343,2]
[352926938,1739436645701,-2158.6,0.00015343,2]
[352926939,1739436645711,-500.0,0.00015343,2]
[352926940,1739436645722,-1685.43,0.00015343,2]
[352926941,1739436645733,-999.33,0.00015343,2]
[352926942,1739436645742,-6959.78,0.00015343,2]
[352926943,1739436645752,-972.17,0.00015343,2]
[352926944,1739436645763,-6540.58,0.00015343,2]
[352926945,1739436645774,-2468.94,0.00015343,2]
[352926946,1739436645785,-3006.69,0.00015343,2]
[352926947,1739436645795,-500.0,0.00015344,2]
[352926948,1739436645805,-500.0,0.00015344,2]
[352926949,1739436645816,-500.0,0.00015344,2]
[352926950,1739436645826,-500.0,0.00015344,2]
[352926951,1739436645836,-500.0,0.00015344,2]
[352926952,1739436645847,-821.52,0.00015344,2]
[352926953,1739436645858,-500.0,0.00015344,2]
[352926954,1739436645869,-500.0,0.00015344,2]
[352926955,1739436645880,-500.0,0.00015344,2]
[352926956,1739436645890,-500.0,0.00015344,2]
[352926957,1739436645900,-500.0,0.00015344,2]
[352926958,1739436645910,-500.0,0.00015344,2]
[352926959,1739436645919,-500.0,0.00015344,2]
[352926960,1739436645929,-885.39,0.00015344,2]
[352926961,1739436645939,-502.47140267,0.00015344,2]
[352926962,1739436645948,-509.02746526,0.00015344,2]
[352926963,1739436645958,-500.0,0.00015344,2]
[352926964,1739436645967,-500.0,0.00015344,2]
[352926965,1739436645977,-500.0,0.00015344,2]
[352926966,1739436645986,-500.0,0.00015344,2]
[352926967,1739436645997,-500.0,0.00015344,2]
[352926968,1739436646007,-500.0,0.00015344,2]
[352926969,1739436646017,-1519.47,0.00015344,2]
[352926970,1739436646027,-939.91,0.00015344,2]
[352926971,1739436646036,-508.45894788,0.00015344,2]
[352926972,1739436646046,-508.24320893,0.00015344,2]
[352926973,1739436646056,-500.0,0.00015344,2]
[352926974,1739436646066,-924.27,0.00015344,2]
[352926975,1739436646075,-500.0,0.00015344,2]
[352926976,1739436646086,-500.0,0.00015344,2]
[352926977,1739436646097,-2547.8,0.00015344,2]
[352926978,1739436646109,-500.0,0.00015344,2]
[352926979,1739436646119,-2945.27,0.00015344,2]
[352926980,1739436646130,-673.05,0.00015344,2]
[352926981,1739436646140,-502.29262094,0.00015344,2]
[352926982,1739436646150,-500.0,0.00015344,2]
[352926983,1739436646161,-897.57,0.00015344,2]
[352926984,1739436646172,-553.05,0.00015344,2]
[352926985,1739436646182,-2129.81,0.00015344,2]
[352926986,1739436646192,-1257.39,0.00015344,2]
[352926987,1739436646202,-1060.36,0.00015344,2]
[352926988,1739436646211,-1329.75,0.00015344,2]
[352926989,1739436646221,-504.97315998,0.00015344,2]
[352926990,1739436646230,-1781.93,0.00015344,2]
[352926991,1739436646240,-2097.34,0.00015344,2]
[352926992,1739436646249,-500.0,0.00015344,2]
[352926993,1739436646259,-647.35,0.00015344,2]
[352926994,1739436646268,-2893.82,0.00015344,2]
[352926995,1739436646277,-503.13190529,0.00015344,2]
[352926996,1739436646287,-508.83586017,0.00015344,2]
[352926997,1739436646296,-1615.3,0.00015344,2]
[352926998,1739436646305,-500.0,0.00015344,2]
[352926999,1739436646315,-500.0,0.00015344,2]
[352927000,1739436646326,-596.99,0.00015344,2]
[352927001,1739436646338,-1648.48,0.00015344,2]
[352927002,1739436646352,-1858.45,0.00015344,2]
[352927003,1739436646366,-923.76,0.00015344,2]
[352927004,1739436646376,-520.19172596,0.00015344,2]
[352927005,1739436646386,-500.0,0.00015344,2]
[352927006,1739436646395,-500.0,0.00015344,2]
[352927007,1739436646404,-1837.62,0.00015344,2]
[352927008,1739436646414,-560.83,0.00015344,2]
[352927009,1739436646424,-1260.72,0.00015344,2]
[352927010,1739436646434,-1636.3,0.00015344,2]
[352927011,1739436646443,-1661.73,0.00015344,2]
[352927012,1739436646454,-2644.97,0.00015344,2]
[352927013,1739436646463,-2739.78,0.00015344,2]
[352927014,1739436646474,-1333.97,0.00015344,2]
[352927015,1739436646483,-1040.19,0.00015344,2]
[352927016,1739436646493,-638.09,0.00015344,2]
[352927017,1739436646502,-1366.1,0.00015344,2]
[352927018,1739436646512,-504.37693989,0.00015344,2]
[352927019,1739436646522,-1606.01,0.00015344,2]
[352927020,1739436646531,-500.0,0.00015344,2]
[352927021,1739436646541,-500.0,0.00015344,2]
[352927022,1739436646551,-668.96,0.00015344,2]
[352927023,1739436646562,-1201.64,0.00015344,2]
[352927024,1739436646572,-1251.69,0.00015344,2]
[352927025,1739436646583,-1192.26,0.00015344,2]
[352927026,1739436646594,-506.60022332,0.00015344,2]
[352927027,1739436646605,-1256.22,0.00015344,2]
[352927028,1739436646616,-581.77,0.00015344,2]
[352927029,1739436646627,-1673.18,0.00015344,2]
[352927030,1739436646637,-1219.12,0.00015344,2]
[352927031,1739436646647,-500.0,0.00015344,2]
[352927032,1739436646658,-500.0,0.00015344,2]
[352927033,1739436646671,-500.0,0.00015344,2]
[352927034,1739436646681,-500.0,0.00015344,2]
[352927035,1739436646691,-2274.6,0.00015344,2]
[352927036,1739436646703,-1369.18,0.00015344,2]
[352927037,1739436646713,-811.36,0.00015344,2]
[352927038,1739436646724,-1833.29,0.00015344,2]
[352927039,1739436646736,-1980.98,0.00015344,2]
[352927040,1739436646747,-2086.28,0.00015344,2]
[352927041,1739436646758,-500.0,0.00015344,2]
[352927042,1739436646769,-1595.09,0.00015344,2]
[352927043,1739436646779,-500.0,0.00015344,2]
[352927044,1739436646789,-500.0,0.00015344,2]
[352927045,1739436646800,-1839.04,0.00015344,2]
[352927046,1739436646810,-3553.68,0.00015344,2]
[352927047,1739436646820,-723.53,0.00015344,2]
[352927048,1739436646830,-753.13,0.00015344,2]
[352927049,1739436646840,-1292.52,0.00015344,2]
[352927050,1739436646850,-500.0,0.00015344,2]
[352927051,1739436646859,-2820.32,0.00015344,2]
[352927052,1739436646868,-500.0,0.00015344,2]
[352927053,1739436646878,-7374.28,0.00015344,2]
[352927054,1739436646887,-1454.62,0.00015344,2]
[352927055,1739436646896,-500.0,0.00015344,2]
[352927056,1739436646906,-3556.67,0.00015344,2]
[352927057,1739436646915,-1507.74,0.00015344,2]
[352927058,1739436646925,-845.73,0.00015344,2]
[352927059,1739436646935,-1305.72,0.00015344,2]
[352927060,1739436646944,-1521.89,0.00015344,2]
[352927061,1739436646954,-500.0,0.00015344,2]
[352927062,1739436646964,-500.0,0.00015344,2]
[352927063,1739436646973,-500.0,0.00015344,2]
[352927064,1739436646987,-3116.14,0.00015344,2]
[352927065,1739436646997,-1579.7,0.00015344,2]
[352927066,1739436647007,-939.09,0.00015344,2]
[352927067,1739436647017,-500.0,0.00015344,2]
[352927068,1739436647027,-1486.22,0.00015344,2]
[352927069,1739436647037,-1195.35,0.00015344,2]
[352927070,1739436647049,-614.96,0.00015344,2]
[352927071,1739436647058,-3510.37,0.00015344,2]
[352927072,1739436647068,-717.36,0.00015344,2]
[352927073,1739436647078,-879.25,0.00015344,2]
[352927074,1739436647087,-1142.39,0.00015344,2]
[352927075,1739436647097,-3047.3,0.00015344,2]
[352927076,1739436647107,-500.0,0.00015344,2]
[352927077,1739436647117,-1144.77,0.00015344,2]
[352927078,1739436647127,-3370.82,0.00015344,2]
[352927079,1739436647137,-1481.62,0.00015344,2]
[352927080,1739436647147,-3025.03,0.00015344,2]
[352927081,1739436647157,-2435.14,0.00015344,2]
[352927082,1739436647338,-500.0,0.00015344,2]
[352927083,1739436647349,-500.0,0.00015344,2]
[352927084,1739436647359,-3309.36,0.00015344,2]
[352927085,1739436647369,-500.0,0.00015344,2]
[352927086,1739436647379,-5119.08,0.00015344,2]
[352927087,1739436647388,-500.0,0.00015344,2]
[352927088,1739436647398,-12718.64,0.00015344,2]
[352927089,1739436647408,-1742.31,0.00015344,2]
[352927090,1739436647418,-2304.87,0.00015344,2]
[352927091,1739436647428,-2804.08,0.00015344,2]
[352927092,1739436647438,-500.0,0.00015344,2]
[352927093,1739436647448,-500.0,0.00015344,2]
[352927094,1739436647458,-2841.64,0.00015344,2]
[352927095,1739436647467,-646.6,0.00015344,2]
[352927096,1739436647477,-151.0,0.00015344,2]
[352927097,1739436647488,-1342.56,0.00015344,2]
[352927098,1739436647498,-1243.94,0.00015344,2]
[352927099,1739436647507,-1307.51,0.00015344,2]
[352927100,1739436647517,-3803.91,0.00015344,2]
[352927101,1739436647528,-150.18286318,0.00015344,2]
[352927102,1739436647539,-500.0,0.00015344,2]
[352927103,1739436647550,-1422.14,0.00015344,2]
[352927104,1739436647560,-1195.08,0.00015344,2]
[352927105,1739436647570,-2025.27,0.00015344,2]
[352927106,1739436647580,-1333.24,0.00015344,2]
[352927107,1739436647590,-3617.98,0.00015344,2]
[352927108,1739436647600,-789.6,0.00015344,2]
[352927109,1739436647612,-2353.99,0.00015344,2]
[352927110,1739436647622,-4524.19,0.00015344,2]
[352927111,1739436647632,-2071.25,0.00015344,2]
[352927112,1739436647642,-1336.47,0.00015344,2]
[352927113,1739436647652,-2900.95,0.00015344,2]
[352927114,1739436647667,-210.4494246,0.00015344,2]
[352927115,1739436647677,-151.0,0.00015345,2]
[352927116,1739436647687,-1010.642811,0.00015346,2]
[352927117,1739436647697,-150.0,0.00015346,2]
[352927118,1739436647707,-1193.0,0.00015347,2]
[352927119,1739436647718,-506.80241733,0.00015347,2]
[352927120,1739436647727,-501.21277393,0.00015347,2]
[352927121,1739436647740,-500.0,0.00015347,2]
[352927122,1739436647750,-500.0,0.00015347,2]
[352927123,1739436647760,-496.21914864,0.00015347,2]
[352927124,1739436647771,-532.32,0.00015347,2]
[352927125,1739436647780,-2505.29,0.00015347,2]
[352927126,1739436647790,-500.0,0.00015347,2]
[352927127,1739436647799,-500.0,0.00015347,2]
[352927128,1739436647810,-1253.52,0.00015347,2]
[352927129,1739436647820,-500.0,0.00015347,2]
[352927130,1739436647830,-500.0,0.00015347,2]
[352927131,1739436647840,-500.0,0.00015347,2]
[352927132,1739436647850,-1334.38,0.00015347,2]
[352927133,1739436647861,-500.0,0.00015347,2]
[352927134,1739436647871,-1247.08,0.00015347,2]
[352927135,1739436647882,-1146.07,0.00015347,2]
[352927136,1739436647892,-500.0,0.00015347,2]
[352927137,1739436647902,-2626.53,0.00015347,2]
[352927138,1739436647912,-1237.83,0.00015347,2]
[352927139,1739436647923,-1655.91,0.00015347,2]
[352927140,1739436647933,-2526.64,0.00015347,2]
[352927141,1739436647942,-1267.61,0.00015347,2]
[352927142,1739436647952,-1538.21,0.00015347,2]
[352927143,1739436647962,-500.0,0.00015347,2]
[352927144,1739436647971,-2223.69,0.00015347,2]
[352927145,1739436647982,-1058.71,0.00015347,2]
[352927146,1739436647992,-2079.91,0.00015347,2]
[352927147,1739436648002,-2372.61,0.00015347,2]
[352927148,1739436648012,-2174.35,0.00015347,2]
[352927149,1739436648022,-1601.79,0.00015347,2]
[352927150,1739436648032,-782.22,0.00015347,2]
[352927151,1739436648041,-2386.9,0.00015347,2]
[352927152,1739436648051,-1396.05,0.00015347,2]
[352927153,1739436648061,-2451.98,0.00015347,2]
[352927154,1739436648071,-500.0,0.00015347,2]
[352927155,1739436648081,-2405.28,0.00015347,2]
[352927156,1739436648091,-1223.39,0.00015347,2]
[352927157,1739436648105,-1390.49,0.00015347,2]
[352927158,1739436648114,-640.99,0.00015347,2]
[352927159,1739436648125,-674.27,0.00015347,2]
[352927160,1739436648134,-500.0,0.00015347,2]
[352927161,1739436648144,-939.2,0.00015347,2]
[352927162,1739436648154,-678.91,0.00015347,2]
[352927163,1739436648164,-1407.27,0.00015347,2]
[352927164,1739436648174,-1357.93,0.00015347,2]
[352927165,1739436648183,-500.0,0.00015347,2]
[352927166,1739436648193,-500.0,0.00015347,2]
[352927167,1739436648203,-500.0,0.00015356,2]
[352927168,1739436648213,-496.5,0.00015356,2]
[352927169,1739436648223,-500.0,0.00015356,2]
[352927170,1739436648234,-1025.16,0.00015356,2]
[352927171,1739436648244,-500.0,0.00015356,2]
[352927172,1739436648254,-500.0,0.00015356,2]
[352927173,1739436648264,-500.0,0.00015356,2]
[352927174,1739436648274,-500.0,0.00015356,2]
[352927175,1739436648285,-500.0,0.00015356,2]
[352927176,1739436648295,-500.0,0.00015356,2]
[352927177,1739436648305,-500.0,0.00015356,2]
[352927178,1739436648315,-500.0,0.00015356,2]
[352927179,1739436648325,-500.0,0.00015356,2]
[352927180,1739436648335,-1214.34,0.00015356,2]
[352927181,1739436648346,-500.0,0.00015356,2]
[352927182,1739436648356,-500.0,0.00015356,2]
[352927183,1739436648367,-987.05,0.00015356,2]
[352927184,1739436648377,-844.28,0.00015356,2]
[352927185,1739436648388,-500.0,0.00015356,2]
[352927186,1739436648398,-500.0,0.00015356,2]
[352927187,1739436648409,-500.0,0.00015356,2]
[352927188,1739436648419,-557.69388946,0.00015356,2]
[352927189,1739436648430,-500.0,0.00015356,2]
[352927190,1739436648440,-500.0,0.00015356,2]
[352927191,1739436648451,-500.0,0.00015356,2]
[352927192,1739436648462,-500.0,0.00015356,2]
[352927193,1739436648473,-500.0,0.00015356,2]
[352927194,1739436648483,-500.0,0.00015356,2]
[352927195,1739436648494,-500.0,0.00015356,2]
[352927196,1739436648505,-500.0,0.00015356,2]
[352927197,1739436648515,-500.0,0.00015356,2]
[352927198,1739436648526,-1010.97,0.00015356,2]
[352927199,1739436648537,-500.0,0.00015356,2]
[352927200,1739436648547,-500.0,0.00015356,2]
[352927201,1739436648557,-737.96,0.00015356,2]
[352927202,1739436648567,-500.0,0.00015356,2]
[352927203,1739436648577,-500.0,0.00015356,2]
[352927204,1739436648587,-500.0,0.00015356,2]
[352927205,1739436648596,-500.0,0.00015356,2]
[352927206,1739436648606,-500.0,0.00015356,2]
[352927207,1739436648617,-500.0,0.00015356,2]
[352927208,1739436648627,-500.0,0.00015356,2]
[352927209,1739436648637,-504.70023944,0.00015356,2]
[352927210,1739436648646,-500.0,0.00015356,2]
[352927211,1739436648656,-500.0,0.00015356,2]
[352927212,1739436648669,-500.0,0.00015356,2]
[352927213,1739436648679,-500.0,0.00015356,2]
[352927214,1739436648689,-502.42360057,0.00015356,2]
[352927215,1739436648699,-500.0,0.00015356,2]
[352927216,1739436648710,-500.0,0.00015356,2]
[352927217,1739436648720,-500.0,0.00015356,2]
[352927218,1739436648731,-500.0,0.00015356,2]
[352927219,1739436648744,-534.62,0.00015356,2]
[352927220,1739436648755,-500.0,0.00015356,2]
[352927221,1739436648765,-500.0,0.00015356,2]
[352927222,1739436648775,-500.0,0.00015356,2]
[352927223,1739436648785,-500.0,0.00015356,2]
[352927224,1739436648795,-500.0,0.00015356,2]
[352927225,1739436648805,-509.77435533,0.00015356,2]
[352927226,1739436648815,-500.0,0.00015356,2]
[352927227,1739436648825,-597.88183603,0.00015356,2]
[352927228,1739436648834,-870.66,0.00015356,2]
[352927229,1739436648845,-500.0,0.00015356,2]
[352927230,1739436648854,-500.0,0.00015356,2]
[352927231,1739436648863,-500.0,0.00015356,2]
[352927232,1739436648874,-581.13157943,0.00015356,2]
[352927233,1739436648885,-568.66,0.00015356,2]
[352927234,1739436648895,-500.0,0.00015356,2]
[352927235,1739436648905,-500.0,0.00015356,2]
[352927236,1739436648915,-500.0,0.00015356,2]
[352927237,1739436648925,-510.2024199,0.00015356,2]
[352927238,1739436648934,-500.0,0.00015356,2]
[352927239,1739436648943,-500.0,0.00015356,2]
[352927240,1739436648953,-500.0,0.00015356,2]
[352927241,1739436648962,-790.23,0.00015356,2]
[352927242,1739436648971,-500.0,0.00015356,2]
[352927243,1739436648980,-500.0,0.00015356,2]
[352927244,1739436648989,-500.0,0.00015356,2]
[352927245,1739436648999,-530.22,0.00015356,2]
[352927246,1739436649008,-1105.16,0.00015356,2]
[352927247,1739436649018,-500.0,0.00015356,2]
[352927248,1739436649028,-500.0,0.00015356,2]
[352927249,1739436649038,-535.9434343,0.00015356,2]
[352927250,1739436649049,-500.0,0.00015356,2]
[352927251,1739436649059,-500.0,0.00015356,2]
[352927252,1739436649069,-500.0,0.00015356,2]
[352927253,1739436649078,-500.0,0.00015356,2]
[352927254,1739436649088,-1087.31,0.00015356,2]
[352927255,1739436649099,-500.0,0.00015356,2]
[352927256,1739436649109,-780.78,0.00015356,2]
[352927257,1739436649119,-500.0,0.00015356,2]
[352927258,1739436649130,-1115.16,0.00015356,2]
[352927259,1739436649140,-500.0,0.00015356,2]
[352927260,1739436649150,-500.0,0.00015356,2]